bitfinex-derivatives/quotes_BNBF0:USTF0_20250709
["timestamp","ask_amount","ask_price","bid_price","bid_amount"]
[1752071177300,1.71097772,663.6,662.37,1.6841251]
[1752071177502,5.6256424,664.94,662.37,1.6841251]
[1752071177503,1.71097772,663.59,662.37,1.6841251]
[1752071177705,1.71097772,663.58,662.37,1.6841251]
[1752071178005,1.71097772,663.57,662.37,1.6841251]
[1752071178206,1.271825,663.56,662.7,1.6841251]
[1752071178501,2.2502569,663.97,662.7,1.6841251]
[1752071181108,2.2502569,663.98,662.71,1.6841251]
[1752071181305,2.2502569,663.97,662.71,1.6841251]
[1752071182905,2.2502569,663.94,662.74,1.6841251]
[1752071183104,2.2502569,663.93,662.74,1.6841251]
[1752071183311,2.2502569,663.94,662.75,1.6841251]
[1752071184405,2.2502569,663.93,662.75,1.6841251]
[1752071185406,2.2502569,663.81,662.85,1.6841251]
[1752071186815,2.2502569,663.81,662.86,1.6841251]
[1752071187411,2.2502569,663.8,662.86,1.6841251]
[1752071187715,2.2502569,663.81,662.86,1.6841251]
[1752071188816,2.2502569,663.79,662.87,1.6841251]
[1752071189313,2.2502569,663.75,662.91,1.6841251]
[1752071190214,2.2502569,663.74,662.91,1.6841251]
[1752071191915,2.2502569,663.74,662.35,2.108]
[1752071191916,2.2502569,663.64,662.99,1.6841251]
[1752071194417,5.6256424,664.23,663.0,1.6841251]
[1752071194418,2.2502569,663.63,663.0,1.6841251]
[1752071195821,2.2502569,663.62,663.01,1.6841251]
[1752071196320,2.2502569,663.61,663.01,1.6841251]
[1752071197218,2.2502569,663.61,663.02,1.6841251]
[1752071197421,2.2502569,663.6,663.03,1.6841251]
[1752071198222,2.2502569,663.59,663.03,1.6841251]
[1752071198617,2.2502569,663.59,663.04,1.6841251]
[1752071199223,2.2502569,663.58,663.04,1.6841251]
[1752071199719,2.2502569,663.59,663.05,1.6841251]
[1752071200723,2.2502569,663.62,663.02,1.6841251]
[1752071201223,2.2502569,663.62,663.03,1.6841251]
[1752071201421,2.2502569,663.61,663.03,1.6841251]
[1752071202321,2.2502569,663.6,663.04,1.6841251]
[1752071203321,2.2502569,663.59,663.05,1.6841251]
[1752071203524,2.2502569,663.59,662.81,3.3682502]
[1752071203525,2.2502569,663.59,663.04,1.6841251]
[1752071203925,2.2502569,663.6,663.04,1.6841251]
[1752071204424,2.2502569,663.59,663.04,1.6841251]
[1752071204623,2.2502569,663.58,663.04,1.6841251]
[1752071205120,2.2502569,663.63,663.01,1.6841251]
[1752071205320,2.2502569,663.61,663.03,1.6841251]
[1752071206827,2.2502569,663.6,663.04,1.6841251]
[1752071207627,2.2502569,663.6,663.05,1.885]
[1752071207926,2.2502569,663.61,663.05,1.885]
[1752071214135,2.2502569,663.6,663.05,1.885]
[1752071214935,2.2502569,663.56,663.07,1.6841251]
[1752071215334,2.2502569,663.57,663.08,1.6841251]
[1752071215531,2.2502569,663.56,663.08,1.6841251]
[1752071218033,2.2502569,663.54,663.1,1.6841251]
[1752071218333,2.2502569,663.56,663.08,1.6841251]
[1752071222335,2.2502569,663.57,663.07,1.6841251]
[1752071223437,1.6951468,663.45,663.07,1.6841251]
[1752071224037,1.6951468,663.44,663.07,1.6841251]
[1752071224341,1.6951468,663.57,663.05,1.885]
[1752071227044,1.6951468,663.58,663.05,1.885]
[1752071234249,1.6951468,663.5,663.05,1.885]
[1752071235655,1.6951468,663.5,663.0,1.6841251]
[1752071235851,1.6951468,663.5,663.01,1.6841251]
[1752071238556,1.6951468,663.5,663.02,2.362]
[1752071241165,1.6951468,663.45,663.08,1.6841251]
[1752071241366,1.6951468,663.45,663.07,1.6841251]
[1752071241563,1.6951468,663.46,663.07,1.6841251]
[1752071242170,1.6951468,663.46,663.05,1.6841251]
[1752071242372,1.6951468,663.47,663.06,1.6841251]
[1752071243572,1.6951468,663.47,663.05,1.6841251]
[1752071245074,1.6951468,663.51,663.02,2.362]
[1752071245375,1.6951468,663.56,663.02,2.362]
[1752071245776,1.6951468,663.57,663.02,2.362]
[1752071246479,1.6951468,663.56,663.02,2.362]
[1752071246680,1.6951468,663.57,663.02,2.362]
[1752071247175,1.6951468,663.56,663.02,2.362]
[1752071247380,1.6951468,663.49,663.02,4.0461251]
[1752071247780,1.6951468,663.47,663.03,1.6841251]
[1752071249482,1.6951468,663.46,663.02,2.362]
[1752071249682,1.6951468,663.44,662.95,1.6841251]
[1752071249879,1.6951468,663.44,662.94,1.6841251]
[1752071250079,1.6951468,663.45,662.93,1.6841251]
[1752071250379,1.6951468,663.43,662.92,1.6841251]
[1752071250576,1.6951468,663.42,662.91,1.6841251]
[1752071250981,1.6951468,663.41,662.92,1.6841251]
[1752071251381,1.6951468,663.34,662.89,1.6841251]
[1752071251579,1.6951468,663.36,662.87,1.6841251]
[1752071252383,5.6256424,664.23,662.87,1.6841251]
[1752071252384,1.6951468,663.37,662.87,1.6841251]
[1752071252683,1.6951468,663.36,662.88,1.6841251]
[1752071253481,1.6951468,663.37,662.88,1.6841251]
[1752071253885,1.6951468,663.37,662.87,1.6841251]
[1752071254481,5.6256424,664.19,662.87,1.6841251]
[1752071254482,1.6951468,663.38,662.87,1.6841251]
[1752071254680,1.6951468,663.38,662.86,1.6841251]
[1752071255385,1.6951468,663.38,662.85,1.6841251]
[1752071255584,1.6951468,663.38,662.86,1.6841251]
[1752071256486,1.6951468,663.38,662.85,1.6841251]
[1752071257091,1.6951468,663.39,662.84,1.6841251]
[1752071258385,1.6951468,663.39,662.83,1.6841251]
[1752071258592,1.6951468,663.38,662.85,1.6841251]
[1752071259391,1.6951468,663.39,662.84,1.6841251]
[1752071262387,1.6951468,663.4,662.83,1.6841251]
[1752071263690,1.6951468,663.39,662.84,1.6841251]
[1752071264097,1.6951468,663.38,662.72,1.788]
[1752071264291,1.6951468,663.37,662.72,1.788]
[1752071265891,1.6951468,663.34,662.72,1.788]
[1752071266393,1.6951468,663.35,662.72,1.788]
[1752071268496,2.2502569,663.5,662.72,1.788]
[1752071268497,1.6951468,663.33,662.72,3.4721251]
[1752071268997,1.6951468,663.29,662.72,1.788]
[1752071269796,1.6951468,663.28,662.72,1.788]
[1752071270399,1.6951468,663.25,662.72,1.788]
[1752071270696,1.6951468,663.24,662.72,1.788]
[1752071271300,1.6951468,663.25,662.72,1.788]
[1752071272596,1.6951468,663.26,662.72,1.788]
[1752071273202,1.6951468,663.32,662.72,1.788]
[1752071273998,1.6951468,663.33,662.72,1.788]
[1752071275300,1.6951468,663.34,662.72,1.788]
[1752071275698,1.6951468,663.33,662.72,1.788]
[1752071276502,1.6951468,663.35,662.72,1.788]
[1752071277201,1.6951468,663.34,662.72,1.788]
[1752071277397,1.6951468,663.35,662.41,1.6841251]
[1752071278001,1.6951468,663.35,662.34,0.26243057]
[1752071278002,1.6951468,663.36,662.4,1.6841251]
[1752071278402,1.6951468,663.36,662.39,1.6841251]
[1752071279699,1.6951468,663.36,662.34,0.26243057]
[1752071279700,1.6951468,663.36,662.36,1.6841251]
[1752071280301,1.6951468,663.36,662.37,2.014]
[1752071281804,1.6951468,663.34,662.37,2.014]
[1752071282109,1.6951468,663.31,662.39,1.6841251]
[1752071282303,1.6951468,663.29,662.42,1.6841251]
[1752071282602,1.6951468,663.29,662.37,2.014]
[1752071282603,1.6951468,663.29,662.41,1.6841251]
[1752071283004,1.6951468,663.29,662.42,1.6841251]
[1752071283209,1.6951468,663.27,662.45,1.6841251]
[1752071283409,1.6951468,663.27,662.44,1.6841251]
[1752071284408,1.6951468,663.26,662.46,1.6841251]
[1752071284709,1.6951468,663.22,662.42,1.6841251]
[1752071285504,1.6951468,663.22,662.41,1.6841251]
[1752071286408,1.6951468,663.22,662.4,1.6841251]
[1752071287510,1.6951468,663.23,662.4,1.6841251]
[1752071288409,7.8758993,664.25,662.38,1.6841251]
[1752071288410,1.6951468,663.24,662.38,1.6841251]
[1752071288607,1.6951468,663.24,662.37,3.6981251]
[1752071288909,1.6951468,663.22,662.37,2.014]
[1752071290705,1.6951468,663.21,662.37,2.014]
[1752071291405,1.6951468,663.22,662.37,2.014]
[1752071291811,1.6951468,663.2,662.37,2.014]
[1752071292514,1.6951468,663.19,662.37,2.014]
[1752071292914,1.6951468,663.18,662.37,2.014]
[1752071294512,1.6951468,663.19,662.37,2.014]
[1752071295517,1.6951468,663.2,662.37,2.014]
[1752071299222,1.6951468,663.17,662.37,2.014]
[1752071299522,1.6951468,663.15,662.37,2.014]
[1752071299917,1.6951468,663.14,662.37,2.014]
[1752071301122,1.2647518,663.28,662.37,2.014]
[1752071301322,1.70313227,663.42,662.37,2.014]
[1752071301518,1.70313227,664.28,662.37,2.014]
[1752071301719,1.70313227,664.27,662.37,2.014]
[1752071301917,1.70313227,664.26,662.37,2.014]
[1752071302122,1.70313227,664.25,662.37,2.014]
[1752071302418,1.70313227,664.24,662.37,2.014]
[1752071302618,1.70313227,664.23,662.37,2.014]
[1752071302918,1.70313227,664.22,662.37,2.014]
[1752071303121,1.70313227,664.21,662.37,2.014]
[1752071303322,1.70313227,664.2,662.37,2.014]
[1752071303516,1.70313227,664.19,662.37,2.014]
[1752071303718,1.70306855,664.18,662.37,2.014]
[1752071304020,1.70306855,664.17,662.37,2.27643057]
[1752071304219,1.70306855,664.16,662.37,2.27643057]
[1752071304422,1.70306855,664.15,662.37,2.27643057]
[1752071304620,1.70306855,664.14,662.37,2.27643057]
[1752071304919,1.70306855,664.13,662.37,2.27643057]
[1752071305122,1.70306855,664.12,662.37,2.27643057]
[1752071305321,1.68360331,663.07,662.37,2.27643057]
[1752071306027,1.68360331,663.08,662.37,2.27643057]
[1752071309742,1.68360331,663.07,662.37,2.27643057]
[1752071311738,1.68412781,663.07,662.37,2.27643057]
[1752071313039,1.68412781,663.06,662.37,2.27643057]
[1752071315936,1.68412781,663.04,662.37,2.27643057]
[1752071317136,1.68412781,663.05,662.37,2.27643057]
[1752071319841,1.68412781,663.12,662.37,2.27643057]
[1752071320035,1.68412781,663.13,662.37,2.27643057]
[1752071321338,1.68412781,663.12,662.37,2.27643057]
[1752071323338,1.68412781,663.13,662.37,2.27643057]
[1752071323538,1.68412781,663.12,662.37,2.27643057]
[1752071323842,1.68412781,663.11,662.37,2.27643057]
[1752071325442,1.68412781,663.1,662.37,2.27643057]
[1752071327346,1.68412781,663.09,662.37,2.27643057]
[1752071327645,1.68412781,663.1,662.37,2.27643057]
[1752071327846,1.68412781,663.11,662.37,2.27643057]
[1752071328542,1.68412781,663.1,662.37,2.27643057]
[1752071328842,7.85681545,664.86,662.37,2.27643057]
[1752071328843,1.68412781,663.16,662.37,2.27643057]
[1752071329442,1.68412781,663.15,662.37,2.27643057]
[1752071329645,1.68412781,663.12,662.37,2.27643057]
[1752071331047,1.68412781,663.09,662.37,2.27643057]
[1752071333245,1.68412781,663.1,662.37,2.27643057]
[1752071333449,1.68412781,663.1,662.37,0.26243057]
[1752071333746,1.68412781,663.16,662.37,1.94446347]
[1752071334146,1.68412781,663.14,662.41,1.6820329]
[1752071334348,1.68412781,663.2,662.48,1.6820329]
[1752071337153,1.68412781,663.2,662.49,2.064]
[1752071338256,1.68412781,663.16,662.49,2.064]
[1752071338552,1.68412781,663.15,662.49,2.064]
[1752071339356,1.68412781,663.14,662.49,2.064]
[1752071340552,1.68412781,663.13,662.49,2.064]
[1752071344265,1.68412781,663.12,662.49,2.064]
[1752071345266,1.68412781,663.1,662.49,2.064]
[1752071346867,1.68412781,663.12,662.49,2.064]
[1752071347762,1.68412781,663.06,662.49,2.064]
[1752071347962,1.68412781,663.07,662.49,2.064]
[1752071351268,1.68412781,663.08,662.49,2.064]
[1752071352366,1.68412781,663.07,662.49,2.064]
[1752071352667,1.68412781,663.08,662.49,2.064]
[1752071353470,1.68412781,663.07,662.49,2.064]
[1752071354071,1.68412781,663.05,662.49,2.064]
[1752071354571,1.68412781,663.03,662.49,2.064]
[1752071354868,1.68412781,663.05,662.49,2.064]
[1752071357673,1.68412781,663.04,662.49,2.064]
[1752071360175,1.68412781,663.05,662.49,2.064]
[1752071361277,1.68412781,663.04,662.49,2.064]
[1752071364878,1.68412781,663.02,662.49,2.064]
[1752071366174,1.68412781,663.11,662.49,2.064]
[1752071366379,1.68412781,663.13,662.49,2.064]
[1752071366679,1.68412781,663.02,662.49,2.064]
[1752071367783,1.68412781,663.01,662.49,2.064]
[1752071368677,1.68412781,663.03,662.49,2.064]
[1752071369485,1.68412781,663.02,662.49,2.064]
[1752071370679,1.68412781,662.92,662.49,2.064]
[1752071371078,1.68412781,662.82,662.49,2.064]
[1752071371481,1.68412781,662.83,662.49,2.064]
[1752071372483,1.68412781,662.84,662.49,2.064]
[1752071372979,1.68412781,662.83,662.49,2.064]
[1752071373181,1.68412781,662.78,662.49,2.064]
[1752071373579,1.68412781,662.79,662.49,2.064]
[1752071373880,1.68412781,662.77,662.49,2.064]
[1752071374181,1.68412781,662.78,662.49,2.064]
[1752071374783,1.68412781,662.79,662.49,2.064]
[1752071374983,1.68412781,662.78,662.49,2.064]
[1752071375378,1.68412781,662.79,662.49,2.064]
[1752071376080,1.68412781,662.79,662.31,0.26254739]
[1752071377486,3.36720662,663.04,662.31,0.26254739]
[1752071377690,1.7162231,663.53,662.31,0.26254739]
[1752071377886,1.7162231,663.52,662.31,0.26254739]
[1752071378187,1.7162231,663.51,662.31,0.26254739]
[1752071378486,1.7162231,663.5,662.31,0.26254739]
[1752071378686,1.7162231,663.49,662.31,0.26254739]
[1752071378888,1.7162231,663.48,662.32,2.298]
[1752071379088,1.68990104,662.8,662.32,2.298]
[1752071379486,1.68990104,662.81,662.32,2.298]
[1752071380687,1.68990104,662.82,662.32,2.298]
[1752071381187,1.68990104,662.76,662.32,2.298]
[1752071381487,1.68990104,662.79,662.32,2.298]
[1752071381790,1.68990104,662.77,662.32,2.298]
[1752071382785,1.68990104,662.72,662.32,2.298]
[1752071382990,1.68990104,662.68,662.32,2.298]
[1752071383594,1.68990104,662.64,662.32,2.298]
[1752071383992,1.68990104,662.53,662.32,2.298]
[1752071384395,1.68990104,662.55,662.32,2.298]
[1752071384591,1.68990104,662.52,662.32,2.298]
[1752071384894,1.68990104,662.45,662.32,2.298]
[1752071385094,1.68990104,662.46,662.32,2.298]
[1752071385292,1.68990104,662.49,662.32,2.298]
[1752071385791,1.68990104,662.51,662.32,2.298]
[1752071385997,1.68990104,662.5,662.32,2.298]
[1752071386496,1.68990104,662.52,662.32,2.298]
[1752071387398,1.68990104,662.54,662.32,2.298]
[1752071387895,1.68990104,662.53,662.32,2.298]
[1752071388095,1.68990104,662.51,662.32,2.298]
[1752071388292,1.68990104,662.5,662.32,2.298]
[1752071388497,1.68990104,662.51,662.32,2.298]
[1752071388895,1.68990104,662.52,662.32,2.298]
[1752071389199,1.68990104,662.51,662.32,2.298]
[1752071389598,1.68990104,662.57,662.32,2.298]
[1752071390001,1.68990104,662.56,662.32,2.298]
[1752071390496,1.68990104,662.57,662.32,2.298]
[1752071391197,1.68990104,662.56,662.32,2.298]
[1752071391498,1.68990104,662.57,662.32,2.298]
[1752071392101,1.68990104,662.58,662.32,2.298]
[1752071392301,1.68990104,662.55,662.32,2.298]
[1752071392502,1.68990104,662.56,662.32,2.098]
[1752071393402,1.68990104,662.58,662.32,2.098]
[1752071393601,1.68990104,662.62,662.32,2.098]
[1752071394699,1.68990104,662.64,662.32,2.098]
[1752071395402,1.68990104,662.65,662.32,2.098]
[1752071395599,1.68990104,662.69,662.32,2.098]
[1752071396602,1.68990104,662.7,662.32,2.098]
[1752071397705,1.68990104,662.66,662.32,2.098]
[1752071398506,1.68990104,662.67,662.32,2.098]
[1752071399003,1.68990104,662.65,662.32,2.098]
[1752071399203,1.68990104,662.64,662.32,2.098]
[1752071400105,1.68990104,662.58,662.32,2.098]
[1752071400503,1.68990104,662.59,662.32,2.098]
[1752071400908,1.68990104,662.51,662.32,2.098]
[1752071401205,1.68990104,662.52,662.32,2.098]
[1752071402306,1.68990104,662.51,662.32,2.098]
[1752071404010,1.26847952,662.64,662.32,2.098]
[1752071404211,1.70712964,662.78,662.32,2.098]
[1752071404411,1.70712964,664.07,662.32,2.098]
[1752071404708,1.70712964,664.06,662.32,2.098]
[1752071404911,1.70712964,664.05,662.32,2.098]
[1752071405110,1.70712964,664.04,662.32,2.098]
[1752071405309,1.70712964,664.03,662.32,2.098]
[1752071405512,1.70712964,664.02,662.32,2.098]
[1752071405808,1.70712964,664.01,662.32,2.098]
[1752071406107,1.70712964,664.0,662.32,2.098]
[1752071406310,1.70712964,663.99,662.32,2.098]
[1752071406510,1.70712964,663.98,662.32,2.098]
[1752071406711,1.70712964,663.97,662.32,2.098]
[1752071406908,1.70712964,663.96,662.32,2.098]
[1752071407109,1.70712964,663.95,662.32,2.098]
[1752071407411,1.70712964,663.94,662.32,2.098]
[1752071407609,1.70712964,663.93,662.32,2.098]
[1752071407908,1.70712964,663.92,662.32,2.098]
[1752071408110,1.70712964,663.91,662.32,2.098]
[1752071408308,1.70712964,663.9,662.32,2.098]
[1752071408517,3.34188474,662.53,662.32,2.098]
[1752071408810,2.22792316,662.43,662.32,2.098]
[1752071409013,2.22792316,662.4,662.32,2.098]
[1752071409209,2.22792316,662.34,662.32,2.098]
[1752071409509,3.34188474,662.46,662.32,2.098]
[1752071409712,3.34188474,662.33,662.32,2.098]
[1752071409910,1.70583554,662.45,662.32,2.098]
[1752071410110,0.43735602,662.77,662.32,2.098]
[1752071410312,3.33502549,662.35,662.32,2.098]
[1752071410716,3.33502549,662.33,662.32,2.098]
[1752071410916,3.33502549,662.33,661.24,0.26283095]
[1752071411116,1.66757926,662.07,661.24,0.26283095]
[1752071411616,1.66757926,662.09,661.24,0.26283095]
[1752071411817,1.66757926,662.11,661.24,0.26283095]
[1752071412313,1.66757926,662.13,661.15,0.26307036]
[1752071412610,1.66757926,662.14,661.15,0.26307036]
[1752071413216,1.66757926,662.12,661.15,0.26307036]
[1752071413416,1.66757926,662.14,661.15,0.26307036]
[1752071413816,1.66757926,662.15,661.15,0.26307036]
[1752071414111,1.66757926,662.14,661.15,0.26307036]
[1752071414316,1.66757926,662.15,661.15,0.26307036]
[1752071415417,1.66757926,662.13,661.15,0.26307036]
[1752071416416,1.66757926,662.16,661.15,0.26307036]
[1752071416715,1.66757926,662.24,661.15,0.26307036]
[1752071416915,1.66757926,662.25,661.15,0.26307036]
[1752071417115,5.56980791,663.3,661.15,0.26307036]
[1752071417116,1.66757926,662.3,661.15,0.26307036]
[1752071417319,1.66757926,662.32,661.15,0.26307036]
[1752071417520,1.66757926,662.31,661.16,2.167]
[1752071417716,1.66757926,662.32,661.16,2.167]
[1752071418220,1.66757926,662.34,661.16,2.167]
[1752071420222,1.66757926,662.36,661.16,2.167]
[1752071420420,1.66757926,662.37,661.16,2.167]
[1752071420621,1.66757926,662.38,661.16,2.167]
[1752071420816,1.66757926,662.35,661.16,2.167]
[1752071421517,1.66757926,662.33,661.16,2.167]
[1752071422322,1.66757926,662.27,661.16,2.167]
[1752071422522,1.66757926,662.26,661.16,2.167]
[1752071422820,1.66757926,662.25,661.16,2.167]
[1752071423222,1.66757926,662.2,661.16,2.167]
[1752071423420,2.22343902,662.34,661.16,2.167]
[1752071423421,1.66757926,662.19,661.16,2.167]
[1752071425018,1.66757926,662.18,661.16,2.167]
[1752071425519,1.66757926,662.19,661.16,2.167]
[1752071425724,1.66757926,662.08,661.16,2.167]
[1752071426320,1.66757926,662.09,661.16,2.167]
[1752071427123,5.56980791,663.04,661.16,2.167]
[1752071427124,1.66757926,662.08,661.16,2.167]
[1752071427323,1.66757926,662.06,661.16,2.167]
[1752071428025,1.66757926,662.03,661.16,2.167]
[1752071429326,1.66757926,662.04,661.16,2.167]
[1752071429521,1.66757926,662.03,661.16,2.167]
[1752071430328,1.66757926,662.02,661.16,2.167]
[1752071430725,1.66757926,662.01,661.16,2.167]
[1752071431325,1.66757926,662.02,661.16,2.167]
[1752071431625,1.66757926,662.0,661.16,2.167]
[1752071433127,1.66757926,662.03,661.16,2.167]
[1752071433324,1.66757926,662.04,661.16,2.167]
[1752071433527,1.66757926,662.03,661.16,2.167]
[1752071434226,1.25355896,662.29,661.16,2.167]
[1752071434227,1.66757926,662.0,661.16,2.167]
[1752071435031,1.66757926,662.01,661.16,2.167]
[1752071435531,1.66757926,662.0,661.16,2.167]
[1752071435727,1.66757926,661.97,661.16,2.167]
[1752071435931,1.66757926,661.95,661.16,2.167]
[1752071436132,1.66757926,661.99,661.16,2.167]
[1752071436332,1.66757926,661.98,661.16,2.167]
[1752071436528,1.66757926,661.97,661.16,2.167]
[1752071437027,1.66757926,661.98,661.16,2.167]
[1752071437432,1.66757926,661.95,661.16,2.167]
[1752071437732,1.66757926,661.92,661.16,2.167]
[1752071438231,1.66757926,661.9,661.16,2.167]
[1752071438733,1.66757926,661.91,661.16,2.167]
[1752071438935,1.66757926,661.9,661.16,2.167]
[1752071439528,1.66757926,661.89,661.16,2.167]
[1752071440030,1.66757926,661.92,661.16,2.167]
[1752071440330,1.66757926,661.89,661.16,2.167]
[1752071440532,1.66757926,661.9,661.16,2.167]
[1752071441429,1.66757926,661.89,661.16,2.167]
[1752071442431,1.66757926,661.87,661.16,2.167]
[1752071443330,1.66757926,661.86,661.16,2.167]
[1752071444334,1.66757926,661.87,661.16,2.167]
[1752071444535,1.66757926,661.86,661.16,2.167]
[1752071444931,1.66757926,661.84,661.16,2.167]
[1752071445231,1.66757926,661.82,661.16,2.167]
[1752071446737,5.56980791,662.71,661.16,2.167]
[1752071446738,1.66757926,661.81,661.16,2.167]
[1752071447437,1.66757926,661.81,660.9,0.26307335]
[1752071447438,1.66757926,661.8,660.9,0.26307335]
[1752071448245,1.66757926,661.78,660.9,0.26307335]
[1752071448537,2.22343902,661.9,660.9,0.26307335]
[1752071448538,1.66757926,661.77,660.9,0.26307335]
[1752071448739,1.66757926,661.78,660.9,0.26307335]
[1752071449337,1.66757926,661.77,660.9,0.26307335]
[1752071449538,1.66757926,661.76,660.9,0.26307335]
[1752071450441,1.66757926,661.75,660.91,2.387]
[1752071451442,1.66757926,661.74,660.91,2.387]
[1752071452038,1.66757926,661.75,660.91,2.387]
[1752071452539,1.66757926,661.74,660.91,2.387]
[1752071453138,1.66757926,661.75,660.91,2.387]
[1752071453339,1.66757926,661.74,660.91,2.387]
[1752071454246,1.66757926,661.64,660.91,2.387]
[1752071454438,1.66757926,661.63,660.91,2.387]
[1752071454642,1.66757926,661.57,660.91,2.387]
[1752071455342,1.66757926,661.56,660.91,2.387]
[1752071455645,1.66757926,661.55,660.91,2.387]
[1752071456146,1.66757926,661.57,660.91,2.387]
[1752071456340,1.66757926,661.55,660.91,2.387]
[1752071456544,1.66757926,661.56,660.91,2.387]
[1752071456844,1.66757926,661.57,660.91,2.387]
[1752071457541,1.66757926,661.55,660.91,2.387]
[1752071458644,5.56980791,662.39,660.91,2.387]
[1752071458645,1.66757926,661.53,660.91,2.387]
[1752071458847,1.66757926,661.55,660.91,2.387]
[1752071459144,3.33502549,661.9,660.91,2.387]
[1752071459145,1.66757926,661.58,660.91,2.387]
[1752071459341,1.66757926,661.49,660.91,2.387]
[1752071460044,1.66757926,661.48,660.91,2.387]
[1752071460743,1.66757926,661.43,660.91,2.387]
[1752071460946,1.66757926,661.42,660.91,2.387]
[1752071461141,1.66757926,661.27,660.91,2.387]
[1752071461446,1.66757926,661.23,660.91,2.387]
[1752071461746,5.56980791,662.1,660.91,2.387]
[1752071461747,1.66757926,661.13,660.91,2.387]
[1752071462241,1.66757926,661.12,660.91,2.387]
[1752071462442,1.66757926,661.19,660.91,2.387]
[1752071462743,1.66757926,661.29,660.91,2.387]
[1752071463048,1.66757926,661.28,660.91,2.387]
[1752071463345,5.56980791,662.63,660.91,2.387]
[1752071463346,1.66757926,661.25,660.91,2.387]
[1752071463547,1.66757926,661.34,660.91,2.387]
[1752071464047,1.67551219,661.34,660.91,2.387]
[1752071464243,1.70390638,661.53,660.91,2.387]
[1752071464244,1.67551219,661.36,660.91,2.387]
[1752071464648,1.67551219,661.39,660.91,2.387]
[1752071464944,1.67551219,661.41,660.91,2.387]
[1752071465145,1.67551219,661.42,660.91,2.387]
[1752071465348,1.67551219,661.41,660.91,2.387]
[1752071465848,1.67551219,661.42,660.91,2.387]
[1752071467349,1.67551219,661.41,660.91,2.387]
[1752071467648,1.67551219,661.47,660.91,2.387]
[1752071467949,1.67551219,661.48,660.91,2.387]
[1752071468647,1.67551219,661.47,660.91,2.387]
[1752071468851,1.67551219,661.5,660.91,2.387]
[1752071469053,1.67551219,661.6,660.91,2.387]
[1752071469454,1.67551219,661.59,660.91,2.387]
[1752071470456,1.70349837,661.78,660.91,2.387]
[1752071470457,1.67551219,661.58,660.91,2.387]
[1752071470654,1.26438034,661.76,660.91,2.387]
[1752071470856,1.67761799,661.58,660.91,2.387]
[1752071471056,1.67761799,661.52,660.91,2.387]
[1752071475760,1.67761799,661.53,660.91,2.387]
[1752071477462,1.67761799,661.53,660.35,0.26328631]
[1752071477761,1.67761799,661.41,660.4,1.68506215]
[1752071477958,1.67761799,661.37,660.36,1.68506215]
[1752071478360,1.67761799,661.37,660.37,1.68506215]
[1752071478558,1.67761799,661.37,660.35,1.94834846]
[1752071478761,1.67761799,661.27,660.35,0.26328631]
[1752071479157,1.67761799,661.28,660.35,0.26328631]
[1752071480360,1.67761799,661.27,660.35,0.26328631]
[1752071481362,1.67761799,661.27,660.36,2.159]
[1752071482360,1.67761799,661.26,660.36,2.159]
[1752071482662,1.67761799,661.27,660.36,2.159]
[1752071483262,1.67761799,661.25,660.36,2.159]
[1752071483462,1.67761799,661.36,660.36,2.159]
[1752071483959,1.67761799,661.35,660.36,2.159]
[1752071490968,1.67761799,661.34,660.36,2.159]
[1752071493270,1.67761799,661.22,660.36,2.159]
[1752071494266,1.67761799,661.23,660.36,2.159]
[1752071495267,1.67761799,661.22,660.36,2.159]
[1752071495869,1.67761799,661.25,660.36,2.159]
[1752071497171,1.68081015,661.25,660.36,2.159]
[1752071498571,1.68081015,661.26,660.36,2.159]
[1752071498968,1.68081015,661.33,660.36,2.159]
[1752071499373,1.68081015,661.32,660.36,2.159]
[1752071502578,1.68081015,661.31,660.36,2.159]
[1752071503178,1.68081015,661.32,660.36,2.159]
[1752071503474,1.68081015,661.35,660.36,2.159]
[1752071503778,1.68081015,661.24,660.42,1.68892921]
[1752071504374,1.68081015,661.24,660.43,1.68892921]
[1752071504575,1.68081015,661.23,660.43,1.68892921]
[1752071504779,1.68081015,661.22,660.42,1.68892921]
[1752071505279,1.68081015,661.21,660.42,1.68892921]
[1752071505579,1.68081015,661.21,660.43,1.68892921]